fUSD/lending_fUSD_20250526
["ID","MTS","AMOUNT","RATE_DAILY","PERIOD"]
[362388550,1748245375343,160.0,0.00041671,30]
[362388551,1748245375834,160.0,0.00041671,30]
[362388552,1748245376355,160.0,0.00041671,30]
[362388554,1748245377239,160.0,0.00041671,30]
[362388556,1748245377732,160.0,0.00041671,30]
[362388557,1748245378070,160.0,0.00041671,30]
[362388559,1748245378458,160.0,0.00041671,30]
[362388561,1748245378863,160.0,0.00041671,30]
[362388562,1748245379200,160.0,0.00041671,30]
[362388563,1748245380023,160.0,0.00041671,30]
[362388564,1748245380098,160.0,0.00041671,30]
[362388565,1748245380569,160.0,0.00041671,30]
[362388566,1748245380949,160.0,0.00041671,30]
[362388567,1748245381419,160.0,0.00041671,30]
[362388568,1748245381822,160.0,0.00041671,30]
[362388569,1748245382464,160.0,0.00041671,30]
[362388570,1748245382824,160.0,0.00041671,30]
[362388571,1748245383181,160.0,0.00041671,30]
[362388572,1748245383645,160.0,0.00041671,30]
[362388573,1748245384008,160.0,0.00041671,30]
[362388574,1748245384848,186.599999,0.00041671,30]
[362388575,1748245418873,155.0,0.0001,30]
[362388576,1748245421347,1565.99,0.00025517,120]
[362388577,1748245428655,1000.0,0.00041671,30]
[362388578,1748245432456,500.0,0.00041671,30]
[362388579,1748245432975,500.0,0.00041671,30]
[362388580,1748245433537,500.0,0.00041671,30]
[362388581,1748245434072,500.0,0.00041671,30]
[362388582,1748245434597,500.0,0.00041671,30]
[362388583,1748245435141,500.0,0.00041671,30]
[362388584,1748245435660,500.0,0.00041671,30]
[362388585,1748245436201,547.59215737,0.00041671,30]
[362388586,1748245442932,2992.0,0.00041671,30]
[362388587,1748245448358,1000.0,0.00041671,30]
[362388589,1748245449324,3000.0,0.00041671,30]
[362388590,1748245449583,356.87859759,0.00041671,60]
[362388591,1748245449644,3000.0,0.00041671,120]
[362388594,1748245450180,578.0,0.00041671,30]
[362388596,1748245452981,2838.0,0.00041671,120]
[362388597,1748245455860,1128.2439017,0.00041671,30]
[362388599,1748245460650,1224.0,0.00041671,30]
[362388628,1748245475283,1000.0,0.00041671,60]
[362388629,1748245497679,2000.0,0.00041753,120]
[362388630,1748245500930,500.0,0.00041753,120]
[362388631,1748245501198,500.0,0.00041753,120]
[362388632,1748245501449,500.0,0.00041753,120]
[362388633,1748245501690,500.0,0.00041753,120]
[362388634,1748245501932,553.66676816,0.00041753,120]
[362388635,1748245502715,1174.0,0.00041753,31]
[362388636,1748245503350,506.35785105,0.00041753,120]
[362388637,1748245503408,1174.0,0.00041753,31]
[362388638,1748245503581,1174.0,0.00041753,31]
[362388639,1748245503691,1000.0,0.00041753,30]
[362388640,1748245503872,1000.0,0.00041753,30]
[362388641,1748245503999,1174.0,0.00041753,31]
[362388642,1748245504742,1000.0,0.00041753,30]
[362388643,1748245506128,1000.0,0.00041753,30]
[362388644,1748245506378,1000.0,0.00041753,30]
[362388645,1748245506671,1000.0,0.00041753,30]
[362388646,1748245506920,1000.0,0.00041753,30]
[362388647,1748245507196,5292.91314325,0.00041753,120]
[362388648,1748245507274,1000.0,0.00041753,30]
[362388649,1748245507611,5292.91314325,0.00041753,120]
[362388650,1748245507818,1000.0,0.00041753,30]
[362388651,1748245507894,5292.91314325,0.00041753,120]
[362388652,1748245508048,1000.0,0.00041753,30]
[362388653,1748245508618,1000.0,0.00041753,30]
[362388654,1748245508928,1000.0,0.00041753,30]
[362388655,1748245509180,1000.0,0.00041753,30]
[362388656,1748245509738,816.68165385,0.00041753,30]
[362388657,1748245510058,1000.0,0.00041753,30]
[362388658,1748245510308,295.78836172,0.00041753,30]
[362388659,1748245510977,1000.0,0.00041753,30]
[362388660,1748245511229,1000.0,0.00041753,30]
[362388661,1748245512358,798.53512755,0.00041753,30]
[362388662,1748245513195,2495.4,0.00041753,120]
[362388663,1748245513573,2495.4,0.00041753,120]
[362388664,1748245513707,2495.4,0.00041753,120]
[362388665,1748245513948,2495.4,0.00041753,120]
[362388666,1748245514188,2495.4,0.00041753,120]
[362388667,1748245514418,1010.17868433,0.00041753,120]
[362388668,1748245514472,2495.4,0.00041753,120]
[362388669,1748245514729,1010.17868433,0.00041753,120]
[362388670,1748245514783,2495.4,0.00041753,120]
[362388671,1748245514988,2495.4,0.00041753,120]
[362388672,1748245515044,1010.17868433,0.00041753,120]
[362388673,1748245515221,2495.4,0.00041753,120]
[362388674,1748245515670,2495.4,0.00041753,120]
[362388675,1748245515746,2495.4,0.00041753,120]
[362388676,1748245516344,2495.4,0.00041753,120]
[362388677,1748245516596,2495.4,0.00041753,120]
[362388678,1748245516861,2495.4,0.00041753,120]
[362388679,1748245517096,2495.4,0.00041753,120]
[362388680,1748245517339,2495.4,0.00041753,120]
[362388681,1748245517603,2495.4,0.00041753,120]
[362388682,1748245517843,2495.4,0.00041753,120]
[362388683,1748245518080,2495.4,0.00041753,120]
[362388684,1748245518335,2495.4,0.00041753,120]
[362388685,1748245518560,2495.4,0.00041753,120]
[362388686,1748245518817,2495.4,0.00041753,120]
[362388687,1748245519043,2495.4,0.00041753,120]
[362388688,1748245519282,2495.620023,0.00041753,120]
[362388693,1748245522421,200.0,0.00041753,120]
[362388694,1748245525375,2000.0,0.00041753,60]
[362388695,1748245529026,1000.0,0.00041753,60]
[362388696,1748245530266,200.0,0.00041753,120]
[362388697,1748245534027,1000.0,0.00041753,30]
[362388698,1748245541759,200.0,0.00041753,120]
[362388699,1748245542068,200.0,0.00041753,120]
[362388700,1748245546521,-275.65772645,0.0002,14]
[362388701,1748245549021,4346.778,0.00041753,30]
[362388702,1748245554262,1000.0,0.00041753,30]
[362388703,1748245562225,3000.0,0.00041753,120]
[362388704,1748245567078,1000.0,0.00041753,30]
[362388705,1748245579874,1000.0,0.00041753,60]
[362388709,1748245593656,1000.0,0.00041753,30]
[362388710,1748245606494,1000.0,0.00041753,60]
[362388711,1748245619339,1000.0,0.00041753,60]
[362388712,1748245619815,500.0,0.00041753,120]
[362388713,1748245620065,500.0,0.00041753,120]
[362388714,1748245620297,500.0,0.00041753,120]
[362388715,1748245620541,271.10081456,0.00041753,120]
[362388716,1748245632134,1000.0,0.00041753,30]
[362388717,1748245634018,1077.0,0.00041753,30]
[362388718,1748245636255,1077.0,0.00041753,30]
[362388719,1748245638970,1077.0,0.00041753,30]
[362388720,1748245641304,1077.0,0.00041753,30]
[362388721,1748245643641,1077.0,0.00041753,30]
[362388722,1748245644946,1000.0,0.00041753,60]
[362388723,1748245653184,160.0,0.00041753,30]
[362388724,1748245653610,160.0,0.00041753,30]
[362388725,1748245654415,160.0,0.00041753,30]
[362388726,1748245654495,160.0,0.00041753,30]
[362388727,1748245654850,160.0,0.00041753,30]
[362388728,1748245655499,160.0,0.00041753,30]
[362388729,1748245655852,160.0,0.00041753,30]
[362388730,1748245656183,160.0,0.00041753,30]
[362388731,1748245656552,160.0,0.00041753,30]
[362388732,1748245656833,160.0,0.00041753,30]
[362388733,1748245657117,160.0,0.00041753,30]
[362388734,1748245657405,160.0,0.00041753,30]
[362388735,1748245657763,1000.0,0.00041753,60]
[362388736,1748245657821,160.0,0.00041753,30]
[362388737,1748245658083,160.0,0.00041753,30]
[362388738,1748245658536,160.0,0.00041753,30]
[362388739,1748245658912,160.0,0.00041753,30]
[362388740,1748245659248,160.0,0.00041753,30]
[362388741,1748245659679,160.0,0.00041753,30]
[362388742,1748245660067,160.0,0.00041753,30]
[362388743,1748245660610,160.0,0.00041753,30]
[362388744,1748245661053,160.0,0.00041753,30]
[362388745,1748245661559,160.0,0.00041753,30]
[362388746,1748245661939,160.0,0.00041753,30]
[362388747,1748245662568,160.0,0.00041753,30]
[362388748,1748245662934,160.0,0.00041753,30]
[362388749,1748245663367,160.0,0.00041753,30]
[362388750,1748245663759,160.0,0.00041753,30]
[362388752,1748245664052,160.0,0.00041753,30]
[362388754,1748245664531,160.0,0.00041753,30]
[362388756,1748245664844,160.0,0.00041753,30]
[362388758,1748245665257,186.599999,0.00041753,30]
[362388759,1748245670556,1000.0,0.00041753,30]
[362388760,1748245671194,160.0,0.00041753,30]
[362388761,1748245671547,160.0,0.00041753,30]
[362388762,1748245671878,160.0,0.00041753,30]
[362388763,1748245672270,160.0,0.00041753,30]
[362388764,1748245672675,160.0,0.00041753,30]
[362388765,1748245673176,160.0,0.00041753,30]
[362388766,1748245673538,160.0,0.00041753,30]
[362388767,1748245673918,160.0,0.00041753,30]
[362388768,1748245674402,160.0,0.00041753,30]
[362388769,1748245674839,160.0,0.00041753,30]
[362388770,1748245675193,160.0,0.00041753,30]
[362388771,1748245675500,160.0,0.00041753,30]
[362388772,1748245675912,160.0,0.00041753,30]
[362388773,1748245676293,160.0,0.00041753,30]
[362388774,1748245676896,160.0,0.00041753,30]
[362388775,1748245677293,160.0,0.00041753,30]
[362388776,1748245677687,160.0,0.00041753,30]
[362388777,1748245678263,160.0,0.00041753,30]
[362388778,1748245678383,160.0,0.00041753,30]
[362388779,1748245678841,160.0,0.00041753,30]
[362388780,1748245679150,160.0,0.00041753,30]
[362388781,1748245679725,160.0,0.00041753,30]
[362388782,1748245680098,160.0,0.00041753,30]
[362388783,1748245680537,160.0,0.00041753,30]
[362388784,1748245680906,160.0,0.00041753,30]
[362388785,1748245681304,160.0,0.00041753,30]
[362388786,1748245681705,160.0,0.00041753,30]
[362388787,1748245682109,160.0,0.00041753,30]
[362388788,1748245682573,160.0,0.00041753,30]
[362388789,1748245682981,160.0,0.00041753,30]
[362388790,1748245683386,1000.0,0.00041753,30]
[362388791,1748245683440,186.599999,0.00041753,30]
[362388792,1748245689268,160.0,0.00041753,30]
[362388793,1748245689603,160.0,0.00041753,30]
[362388794,1748245689923,160.0,0.00041753,30]
[362388795,1748245690312,160.0,0.00041753,30]
[362388796,1748245690744,160.0,0.00041753,30]
[362388797,1748245691128,160.0,0.00041753,30]
[362388798,1748245691535,160.0,0.00041753,30]
[362388799,1748245691902,160.0,0.00041753,30]
[362388800,1748245692228,160.0,0.00041753,30]
[362388801,1748245692661,160.0,0.00041753,30]
[362388802,1748245693049,160.0,0.00041753,30]
[362388803,1748245693431,160.0,0.00041753,30]
[362388804,1748245693776,160.0,0.00041753,30]
[362388805,1748245694287,160.0,0.00041753,30]
[362388806,1748245694606,160.0,0.00041753,30]
[362388807,1748245694978,160.0,0.00041753,30]
[362388808,1748245695353,160.0,0.00041753,30]
[362388809,1748245695778,160.0,0.00041753,30]
[362388810,1748245696079,160.0,0.00041753,30]
[362388811,1748245696192,1000.0,0.00041753,30]
[362388812,1748245696714,160.0,0.00041753,30]
[362388813,1748245697193,160.0,0.00041753,30]
[362388814,1748245697495,160.0,0.00041753,30]
[362388815,1748245697836,160.0,0.00041753,30]
[362388816,1748245698252,160.0,0.00041753,30]
[362388817,1748245698806,160.0,0.00041753,30]
[362388818,1748245698979,160.0,0.00041753,30]
[362388819,1748245699368,160.0,0.00041753,30]
[362388820,1748245699735,160.0,0.00041753,30]
[362388821,1748245700079,160.0,0.00041753,30]
[362388822,1748245700415,160.0,0.00041753,30]
[362388823,1748245700999,186.599999,0.00041753,30]
[362388824,1748245709102,1000.0,0.00041753,60]
[362388825,1748245712259,160.08069189,0.00041753,120]
[362388826,1748245714278,160.08069188,0.00041753,120]
[362388827,1748245716877,1484852.06375986,0.00041753,30]
[362388853,1748245831435,-901.22,0.00017134,2]
[362388854,1748245831445,-250.0,0.00017162,2]
[362388855,1748245831457,-200.0,0.0001719,2]
[362388856,1748245831467,-200.0,0.00017245,2]
[362388857,1748245831476,-250.0,0.00017312,2]
[362388858,1748245831486,-200.0,0.00017637,2]
[362388859,1748245831495,-261.89291555,0.0001769,2]
[362388860,1748245831504,-732.93597228,0.00017988,2]
[362388861,1748245831514,-150.0,0.00018278,7]
[362388862,1748245831524,-250.0,0.00018288,2]
[362388863,1748245831533,-450.34,0.00018297,2]
[362388864,1748245831543,-476.52,0.00018339,2]
[362388865,1748245831553,-1200.0,0.00018457,2]
[362388866,1748245831562,-5859.9,0.00018458,2]
[362388867,1748245831572,-300.0,0.00018536,2]
[362388868,1748245831581,-300.0,0.00018536,2]
[362388869,1748245831590,-300.0,0.00018537,2]
[362388870,1748245831600,-23900.0,0.00018538,2]
[362388871,1748245831609,-1565.99,0.00018558,2]
[362388872,1748245831618,-150.0,0.00018578,2]
[362388873,1748245831628,-286.55,0.00018606,2]
[362388874,1748245831637,-166.44,0.00018659,2]
[362388875,1748245831646,-411.4814043,0.00018705,2]
[362388876,1748245831655,-1000.0,0.00018725,2]
[362388877,1748245831665,-6824.34,0.00018752,2]
[362388878,1748245831674,-483.0,0.00018799,2]
[362388879,1748245831684,-200.0,0.00018848,2]
[362388880,1748245831694,-200.0,0.00018848,2]
[362388881,1748245831703,-250.0,0.00018848,2]
[362388882,1748245831712,-1337.21455133,0.000189,2]
[362388883,1748245831722,-253.77712221,0.000189,2]
[362388884,1748245831731,-707.23,0.00018904,2]
[362388885,1748245831740,-353.71,0.00018904,2]
[362388886,1748245831751,-353.65,0.00018904,2]
[362388887,1748245831760,-353.65,0.00018904,2]
[362388888,1748245831769,-342.64138639,0.00018989,2]
[362388889,1748245831779,-331.66436052,0.00018999,2]
[362388890,1748245831788,-500.0,0.00018999,2]
[362388891,1748245831798,-500.0,0.00018999,2]
[362388892,1748245831808,-500.0,0.00018999,2]
[362388893,1748245831820,-261.47701367,0.00018999,2]
[362388894,1748245831830,-484.67478094,0.00018999,2]
[362388895,1748245831839,-5547.10466916,0.00018999,2]
[362388896,1748245831850,-300.0,0.00019,2]
[362388897,1748245831862,-2774.06,0.00019,2]
[362388898,1748245831872,-2774.06,0.00019,2]
[362388899,1748245831882,-2774.06,0.00019,2]
[362388900,1748245831893,-2774.06,0.00019,2]
[362388901,1748245831903,-2774.06,0.00019,2]
[362388902,1748245831912,-500.0,0.00019,3]
[362388903,1748245831921,-323.2118547,0.00019,5]
[362388904,1748245831931,-935.54613258,0.00019,2]
[362388905,1748245831940,-294.72588892,0.00019024,2]
[362388906,1748245831951,-460.13,0.00019041,2]
[362388907,1748245831961,-353.65,0.00019078,2]
[362388908,1748245831970,-500.0,0.00019178,2]
[362388909,1748245831980,-500.0,0.00019178,2]
[362388910,1748245831989,-500.0,0.00019178,2]
[362388911,1748245831999,-238.14670175,0.00019178,2]
[362388912,1748245832009,-500.0,0.00019178,2]
[362388913,1748245832018,-500.0,0.00019178,2]
[362388914,1748245832028,-436.75,0.00019178,2]
[362388915,1748245832038,-178.57,0.00019178,2]
[362388916,1748245832046,-453.63,0.00019178,2]
[362388917,1748245832056,-353.65,0.00019178,2]
[362388918,1748245832066,-901.22,0.00019398,2]
[362388919,1748245832075,-600.0,0.000194,7]
[362388920,1748245832084,-735.3661157,0.000195,7]
[362388921,1748245832096,-401.23857953,0.000195,7]
[362388922,1748245832117,-163.39530477,0.000195,7]
[362388923,1748245832127,-223.191292,0.00019523,2]
[362388924,1748245832135,-464.32,0.00019589,2]
[362388925,1748245832146,-232.648415,0.00019599,2]
[362388926,1748245832156,-2000.0,0.000196,7]
[362388927,1748245832165,-443.79525562,0.00019667,2]
[362388928,1748245832175,-2600.0,0.000197,7]
[362388929,1748245832184,-353.65,0.00019726,2]
[362388930,1748245832194,-353.65,0.00019726,2]
[362388931,1748245832203,-469.42,0.00019726,2]
[362388932,1748245832213,-173.16,0.00019726,2]
[362388933,1748245832222,-3300.0,0.000198,7]
[362388934,1748245832232,-1414.3775099,0.000198,2]
[362388935,1748245832241,-1000.0,0.000198,2]
[362388936,1748245832250,-1414.37750982,0.00019811,2]
[362388937,1748245832260,-56.35969712,0.00019822,2]
[362388938,1748245832271,-1358.0178127,0.00019822,2]
[362388939,1748245832281,-1414.37750982,0.00019833,2]
[362388940,1748245832290,-1414.37750982,0.00019844,2]
[362388941,1748245832299,-1414.37750982,0.00019856,2]
[362388942,1748245832308,-1414.37750982,0.00019867,2]
[362388943,1748245832318,-1414.37750982,0.00019878,2]
[362388944,1748245832327,-373.72365493,0.00019889,2]
[362388945,1748245832339,-1040.65385489,0.00019889,2]
[362388946,1748245832348,-5059.34614501,0.00019899,2]
[362388947,1748245832359,-3006.49748789,0.00019899,2]
[362388948,1748245832369,-168.43349715,0.00019899,2]
[362388949,1748245832379,-152.05102421,0.00019899,2]
[362388950,1748245832389,-2553.01799075,0.00019899,2]
[362388951,1748245832401,-3550.000005,0.00019899,2]
[362388952,1748245832413,-1300.0,0.00019899,2]
[362388955,1748245837470,-386.44996,0.00019,2]
[362388956,1748245837482,-3430.86173256,0.00019,2]
[362388957,1748245837526,-1456.2075135,0.00019,2]
[362388958,1748245837539,-264.17369165,0.00019,2]
[362388959,1748245837548,-304.23852242,0.00019178,2]
[362388960,1748245837557,-26.97832785,0.00019898,2]
[362388961,1748245837569,-273.02167215,0.00019898,2]
[362388962,1748245837578,-662.82563711,0.00019899,2]
[362388963,1748245837588,-2970.65789076,0.00019899,2]
[362388964,1748245837598,-5095.1857421,0.00019899,2]
[362388965,1748245837607,-8065.84363286,0.00019899,2]
[362388966,1748245837617,-8065.84363286,0.00019899,2]
[362388967,1748245837627,-8065.84363286,0.000199,2]
[362388968,1748245837636,-8065.84363286,0.000199,2]
[362388969,1748245837646,-8065.84363286,0.000199,2]
[362388970,1748245837656,-2072.66402749,0.000199,2]
[362388971,1748245837668,-561.90256375,0.000199,2]
[362388972,1748245837680,-5431.27704162,0.000199,2]
[362388973,1748245837689,-1000.0,0.000199,3]
[362388974,1748245837699,-155.07045536,0.000199,2]
[362388975,1748245837711,-844.92954464,0.000199,2]
[362388976,1748245837720,-216.60638086,0.000199,2]
[362388977,1748245837730,-1738.4640745,0.000199,2]
[362388978,1748245837741,-1144.62011981,0.000199,2]
[362388979,1748245837761,-4710.43400569,0.000199,2]
[362388980,1748245837771,-4784.3128958,0.000199,2]
[362388981,1748245837787,-3281.53073706,0.000199,2]
[362388982,1748245837796,-600.0,0.000199,7]
[362388983,1748245837805,-2155.20943208,0.000199,2]
[362388984,1748245837828,-2263.69314694,0.000199,2]
[362388985,1748245837838,-532.90821374,0.000199,2]
[362388986,1748245837848,-1414.37750982,0.000199,2]
[362388987,1748245837858,-797.55926175,0.000199,2]
[362388989,1748245837871,-3020.89223712,0.000199,2]
[362388991,1748245837880,-177.59168766,0.000199,2]
[362388993,1748245837890,-206.43273751,0.000199,2]
[362388995,1748245837900,-420.0,0.00019946,2]
[362388997,1748245837910,-225.08333771,0.00019946,2]
[362388999,1748245837921,-194.91666229,0.00019946,2]
[362389001,1748245837930,-532.38194896,0.00019946,2]
[362389003,1748245837939,-420.0,0.00019946,2]
[362389005,1748245837948,-420.0,0.00019946,2]
[362389007,1748245837958,-539.2932753,0.00019946,2]
[362389009,1748245837967,-420.0,0.00019946,2]
[362389011,1748245837977,-177.93988708,0.00019946,2]
[362389013,1748245837986,-554.2561028,0.00019946,2]
[362389015,1748245837995,-270.27173962,0.00019946,2]
[362389016,1748245838007,-228.74783738,0.00019946,2]
[362389018,1748245838016,-420.0,0.00019946,2]
[362389020,1748245838026,-420.0,0.00019946,2]
[362389022,1748245838036,-601.15,0.00019946,2]
[362389025,1748245838045,-318.52216262,0.00019946,2]
[362389028,1748245838056,-101.47783738,0.00019946,2]
[362389032,1748245838065,-530.2041413,0.00019946,2]
[362389041,1748245838094,-775.44461026,0.00019946,2]
[362389044,1748245838105,-427.69593149,0.00019946,2]
[362389047,1748245838116,-2873.38824195,0.00019946,2]
[362389050,1748245838126,-420.0,0.00019946,2]
[362389053,1748245838135,-420.0,0.00019947,2]
[362389056,1748245838144,-232.79503237,0.00019947,2]
[362389059,1748245838154,-420.0,0.00019947,2]
[362389062,1748245838164,-529.46033496,0.00019947,2]
[362389065,1748245838173,-445.16894402,0.00019947,2]
[362389068,1748245838182,-420.0,0.00019947,2]
[362389071,1748245838191,-25.49054219,0.00019947,2]
[362389074,1748245838204,-499.23149175,0.00019947,2]
[362389077,1748245838213,-426.22966851,0.00019947,2]
[362389080,1748245838222,-431.4863366,0.00019947,2]
[362389083,1748245838231,-430.73894113,0.00019947,2]
[362389086,1748245838240,-445.50313031,0.00019947,2]
[362389089,1748245838249,-424.79110712,0.00019947,2]
[362389092,1748245838258,-389.87213853,0.00019947,2]
[362389095,1748245838268,-441.57869115,0.00019947,2]
[362389098,1748245838277,-436.04871368,0.00019947,2]
[362389100,1748245838288,-215.91445366,0.00019947,2]
[362389103,1748245838297,-420.0,0.00019947,2]
[362389106,1748245838306,-447.87530308,0.00019947,2]
[362389108,1748245838315,-457.58739334,0.00019947,2]
[362389110,1748245838324,-429.15162835,0.00019947,2]
[362389112,1748245838334,-420.0,0.00019947,2]
[362389114,1748245838343,-420.0,0.00019947,2]
[362389116,1748245838353,-420.0,0.00019947,2]
[362389118,1748245838363,-539.13031695,0.00019947,2]
[362389120,1748245838372,-483.92680274,0.00019947,2]
[362389122,1748245838382,-430.57280862,0.00019947,2]
[362389124,1748245838391,-420.0,0.00019947,2]
[362389126,1748245838400,-439.15996533,0.00019947,2]
[362389128,1748245838410,-420.0,0.00019947,2]
[362389130,1748245838419,-432.09984313,0.00019947,2]
[362389132,1748245838428,-423.2016259,0.00019947,2]
[362389134,1748245838438,-403.97979847,0.00019947,2]
[362389136,1748245838448,-437.949004,0.00019947,2]
[362389138,1748245838457,-448.0397211,0.00019947,2]
[362389139,1748245838466,-427.04126344,0.00019947,2]
[362389141,1748245838478,-424.49481404,0.00019947,2]
[362389143,1748245838487,-425.78357976,0.00019947,2]
[362389144,1748245838496,-449.76129238,0.00019947,2]
[362389146,1748245838506,-420.0,0.00019947,2]
[362389148,1748245838515,-288.86183113,0.00019947,2]
[362389150,1748245838524,-293.67626037,0.00019947,2]
[362389152,1748245838539,-466.59703826,0.00019947,2]
[362389154,1748245838548,-420.0,0.00019947,2]
[362389156,1748245838557,-420.0,0.00019947,2]
[362389158,1748245838566,-420.0,0.00019947,2]
[362389160,1748245838575,-269.96602568,0.00019947,2]
[362389162,1748245838585,-240.0,0.00019962,2]
[362389164,1748245838594,-501.74323714,0.00019973,2]
[362389166,1748245838604,-500.0,0.00019973,2]
[362389168,1748245838613,-159.42812004,0.00019973,2]
[362389170,1748245838623,-170.53798705,0.00019973,2]
[362389172,1748245838632,-169.94578252,0.00019973,2]
[362389174,1748245838642,-216.04182757,0.00019973,2]
[362389176,1748245838651,-500.0,0.00019973,2]
[362389178,1748245838660,-500.0,0.00019973,2]
[362389202,1748245838669,-500.0,0.00019973,2]
[362389205,1748245838916,-277.01297867,0.00019973,2]
[362389207,1748245838926,-500.0,0.00019973,2]
[362389209,1748245838935,-501.37693936,0.00019973,2]
[362389211,1748245838945,-500.0,0.00019973,2]
[362389213,1748245838955,-500.0,0.00019973,2]
[362389215,1748245838964,-288.17669469,0.00019973,2]
[362389217,1748245838975,-265.46893538,0.00019973,2]
[362389219,1748245838985,-500.0,0.00019973,2]
[362389221,1748245838996,-500.0,0.00019973,2]
[362389223,1748245839006,-3207.8,0.00019988,2]
[362389225,1748245839015,-420.0,0.00019989,2]
[362389227,1748245839025,-446.334967,0.00019989,2]
[362389229,1748245839035,-151.65035723,0.00019989,2]
[362389231,1748245839045,-420.0,0.00019989,2]
[362389233,1748245839055,-420.0,0.00019989,2]
[362389235,1748245839064,-420.0,0.00019997,2]
[362389237,1748245839073,-442.87049237,0.00019997,2]
[362389238,1748245839084,-216.91179078,0.00019997,2]
[362389240,1748245839093,-420.0,0.00019997,2]
[362389242,1748245839103,-210.46197781,0.00019998,2]
[362389244,1748245839112,-255.83885633,0.00019998,2]
[362389245,1748245839122,-292.82816176,0.00019998,2]
[362389246,1748245839131,-176.32078907,0.00019998,2]
[362389247,1748245839140,-183.23770485,0.00019998,2]
[362389248,1748245839149,-500.0,0.00019998,2]
[362389249,1748245839159,-376.13207038,0.00019998,2]
[362389250,1748245839168,-500.0,0.00019998,2]
[362389251,1748245839178,-500.0,0.00019998,2]
[362389252,1748245839189,-500.0,0.00019998,2]
[362389253,1748245839198,-500.0,0.00019998,2]
[362389254,1748245839208,-500.0,0.00019998,2]
[362389255,1748245839218,-500.0,0.00019998,2]
[362389256,1748245839227,-500.0,0.00019998,2]
[362389257,1748245839236,-500.0,0.00019998,2]
[362389258,1748245839246,-619.79384932,0.00019998,2]
[362389259,1748245839255,-450.0,0.00019998,2]
[362389260,1748245839265,-418.09184923,0.00019998,2]
[362389261,1748245839274,-421.34177603,0.00019998,2]
[362389262,1748245839284,-469.40246843,0.00019998,2]
[362389263,1748245839293,-420.0,0.00019998,2]
[362389264,1748245839302,-420.0,0.00019998,2]
[362389265,1748245839311,-434.88027227,0.00019998,2]
[362389266,1748245839325,-438.80942553,0.00019998,2]
[362389268,1748245839338,-420.0,0.00019998,2]
[362389269,1748245839347,-420.0,0.00019998,2]
[362389270,1748245839357,-500.78440052,0.00019998,2]
[362389271,1748245839366,-564.47607587,0.00019998,2]
[362389272,1748245839376,-420.0,0.00019998,2]
[362389273,1748245839385,-420.0,0.00019998,2]
[362389274,1748245839395,-548.44935831,0.00019998,2]
[362389275,1748245839404,-420.0,0.00019998,2]
[362389276,1748245839413,-430.69410257,0.00019998,2]
[362389277,1748245839423,-424.04994118,0.00019998,2]
[362389278,1748245839432,-420.0,0.00019998,2]
[362389279,1748245839441,-420.0,0.00019998,2]